[Event "Marcel Invitational Chess-ch 2022"]
[Site "Dhaka"]
[Date "2022.04.24"]
[Round "6.6"]
[White "Md, Sariatullah"]
[Black "Mohammad, Javed"]
[Result "1-0"]
[ECO "B12"]
[WhiteElo "1971"]
[BlackElo "2070"]
[Annotator "TA"]
[PlyCount "69"]
[EventDate "2022.04.18"]
[EventCountry "BAN"]
[SourceTitle "playchess.com"]
[Source "ChessBase"]
[SourceQuality "1"]
[TimeControl "5400+30"]

{[%evp 12,69,-30,-22,0,-6,0,-11,-6,-13,-13,-12,0,-8,3,-33,-40,-19,14,-11,0,0,39,36,118,89,162,97,185,166,870,841,870,875,874,861,856,826,842,822,29990,419,480,549,1021,993,957,803,787,769,1035,1012,2621,2522,29985,4933,29998,2379,2482,2126]} 1. e4 {[%emt 0:10:44]} c6 {[%emt 0:00:16]} 2. d4 {[%emt 0:00:05]} d5 {[%emt 0:00:08]} 3. e5 {[%emt 0:00:03]} Bf5 {[%emt 0:00:14]} 4. Ne2 {[%emt 0:00:04]} e6 {[%emt 0:01:08]} 5. Ng3 {[%emt 0:00:04]} Bg6 {[%emt 0:00:24]} 6. h4 {[%emt 0:00:06]} h5 {[%emt 0:01:11]} 7. Bd3 {[%emt 0:00:05]} Ne7 {[%emt 0:00:33][%cal Oc6c5] B12: Caro-Kann: Advance Variation.} 8. Nc3 {[%emt 0:01:28]} Qb6 {[%emt 0:00:58] [#]} 9. Nce2 $146 {[%emt 0:00:19]} ({Predecessor:} 9. O-O Bxd3 10. Qxd3 Nd7 11. a4 Ng6 12. Bg5 c5 13. Nxd5 exd5 14. e6 Nf6 15. Bxf6 gxf6 {1-0 (41) Petruzzelli,R (2049)-Gerard,A (1934) ICCF email 2014}) 9... c5 {[%emt 0:02:55] The position is equal.} 10. c3 {[%emt 0:00:12]} cxd4 {[%emt 0:00:38]} 11. cxd4 {[%emt 0:00:16]} Nbc6 {[%emt 0:00:21]} 12. a3 {[%emt 0:00:49]} a6 {[%emt 0:03:16]} (12... Na5 {is more complex.} 13. Qa4+ Kd8 14. Bxg6 Nxg6 15. b4 Nc4) 13. b4 {[%emt 0:02:00]} Bxd3 $1 {[%emt 0:02:27]} 14. Qxd3 {[%emt 0:00:39]} Ng6 {[%emt 0:00:30]} 15. f4 {[%emt 0:04:04][%cal Bf2f4,Bf4f5][%mdl 32]} (15. Bg5 $5 {[%cal Rf2f4]}) 15... Be7 {[%emt 0:22:19]} 16. f5 {[%emt 0:00:20]} Nf8 {[%emt 0:07:45]} 17. Be3 {[%emt 0:01:46]} Rc8 {[%emt 0:01:25] Black is now going downhill.} (17... Qb5 $14 18. Qb1 a5) 18. Rc1 {[%emt 0:01:28]} Rc7 {[%emt 0:04:18]} (18... Qd8 $16) 19. Kf2 {[%emt 0:08:01]} ({White should play} 19. Nf4 $18) 19... f6 {[%emt 0:00:40]} (19... Bd8 $16) 20. Rhd1 $18 {[%emt 0:13:34]} Kf7 {[%emt 0:19:00]} (20... fxe5 21. dxe5 Qb5) 21. Nf4 {[%emt 0:00:31]} Rc8 {[%emt 0:12:10]} 22. fxe6+ {[%emt 0:00:06]} Kg8 {[%emt 0:00:02]} 23. Nxd5 {[%emt 0:00:33] Strongly threatening Rxc6.} Qd8 {[%emt 0:00:23] [#]} 24. exf6 $1 {[%emt 0:00:32]} Bxf6 {[%emt 0:00:32]} 25. Qf5 {[%emt 0:03:22]} Bxh4 {[%emt 0:02:55]} 26. Nf4 {[%emt 0:05:59]} (26. Qf7+ $142 Kh7 27. Qxh5+ Kg8 28. Qf7+ Kh7 29. e7 Qxd5 30. Qxd5 Nxe7 31. Qe4+ Nfg6 32. Rxc8 Rxc8 33. Rh1) 26... Rh6 {[%emt 0:04:29]} 27. d5 {[%emt 0:01:51]} ({Less strong is} 27. Qf7+ Kh8 $16) 27... Ne7 {[%emt 0:06:25]} 28. Qf7+ {[%emt 0:03:43]} Kh8 {[%emt 0:00:35]} 29. Rxc8 {[%emt 0:01:32]} Nxc8 {[%emt 0:00:10]} 30. Bd4 {[%emt 0:05:01][%csl Gd4][%cal Rf7g7]} Bxg3+ {[%emt 0:06:29]} 31. Kxg3 {[%emt 0:00:55][%csl Gd4][%cal Rf7g7]} h4+ {[%emt 0:00:10]} 32. Kh2 {[%emt 0:01:16][%csl Gd4][%cal Rf7g7]} Rh7 {[%emt 0:00:42]} 33. Bc5 {[%emt 0:00:30]} (33. Be5 $142 h3 34. gxh3 Qe7 35. Qxe7 Nxe7 36. d6 Nc6 {[#]} 37. e7 $1 Kg8 38. e8=Q) 33... g5 {[%emt 0:00:51]} 34. Qxf8+ {[%emt 0:00:03]} (34. Bd4+ $142 Rg7 35. Qxg7#) 34... Qxf8 {[%emt 0:00:20]} 35. Ng6+ {[%emt 0:00:01] Weighted Error Value: White=0.60/Black=1.14} 1-0

[Event "Marcel Invitational Chess-ch 2022"]
[Site "Dhaka"]
[Date "2022.04.25"]
[Round "7.2"]
[White "Manon, Reja Neer"]
[Black "Anata, Choudhury"]
[Result "1/2-1/2"]
[ECO "B92"]
[WhiteElo "2209"]
[BlackElo "2170"]
[Annotator "TA"]
[PlyCount "61"]
[EventDate "2022.04.18"]
[EventCountry "BAN"]
[SourceTitle "playchess.com"]
[Source "ChessBase"]
[SourceQuality "1"]
[TimeControl "5400+30"]

{[%evp 22,61,0,-10,0,0,0,0,0,0,0,-6,0,0,0,0,0,0,0,0,0,0,0,0,0,0,3,3,3,-3,0,0,0,0,0,0,0,0,0,0,0,0]} 1. e4 {[%emt 0:00:02]} c5 {[%emt 0:04:40]} 2. Nf3 {[%emt 0:00:09]} d6 {[%emt 0:00:20]} 3. d4 {[%emt 0:00:04]} cxd4 {[%emt 0:00:06]} 4. Nxd4 {[%emt 0:00:04]} Nf6 {[%emt 0:00:10]} 5. Nc3 {[%emt 0:00:03]} a6 {[%emt 0:00:07]} 6. Be3 {[%emt 0:00:47]} e5 {[%emt 0:00:10]} 7. Nb3 {[%emt 0:00:14]} Be7 {[%emt 0:00:08]} 8. Be2 {[%emt 0:00:18]} Be6 {[%emt 0:00:39]} 9. O-O {[%emt 0:01:40]} O-O {[%emt 0:00:12]} 10. f4 {[%emt 0:00:02]} exf4 {[%emt 0:00:24]} 11. Bxf4 {[%emt 1:32:37] 11.Bxf4 is better than 11.Rxf4.} Nc6 {[%emt 0:00:11]} 12. Qe1 {[%emt 0:00:00] The position is equal.} d5 {[%emt 0:00:29] B92: Sicilian Najdorf: 6 Be2.} 13. exd5 {[%emt 0:00:00]} Nxd5 {[%emt 0:00:09]} 14. Nxd5 {[%emt 0:00:00]} Qxd5 {[%emt 0:00:09]} 15. Rd1 {[%emt 0:00:00]} Qe4 {[%emt 0:00:34]} 16. Bd3 {[%emt 0:00:00]} Qxe1 {[%emt 0:00:17]} 17. Rfxe1 {[%emt 0:00:00]} Rfe8 {[%emt 0:00:29]} 18. Be4 {[%emt 0:00:00] [#]} Bh4 $146 {[%emt 0:07:59]} ({Predecessor:} 18... a5 19. c3 a4 20. Nd4 Bc5 21. Kh1 Bxd4 22. cxd4 f5 23. Bxc6 bxc6 24. a3 Bb3 {½-½ (46) Laine,E (2234)-Vornanen,A (2337) ICCF email 2010}) 19. Bg3 {[%emt 0:00:00]} Bxg3 {[%emt 0:30:39]} 20. hxg3 {[%emt 0:00:00]} Bxb3 {[%emt 0:08:13]} 21. cxb3 {[%emt 0:00:00]} Re6 {[%emt 0:03:35] [#] Strongly threatening ...Rae8.} 22. Bf3 {[%emt 0:00:00]} Rxe1+ {[%emt 0:12:44]} 23. Rxe1 {[%emt 0:00:00]} Rd8 {[%emt 0:00:11]} 24. Bxc6 {[%emt 0:00:00]} bxc6 $11 {[%emt 0:00:09][%mdl 4096] Endgame KR-KR} 25. Re7 {[%emt 0:00:00]} g6 {[%emt 0:00:14]} 26. Rc7 {[%emt 0:00:00]} Rd1+ {[%emt 0:00:08]} 27. Kh2 {[%emt 0:00:00]} Rd6 {[%emt 0:00:03]} 28. b4 {[%emt 0:00:00]} Rd2 {[%emt 0:00:50]} 29. Rxc6 {[%emt 0:00:00]} Rxb2 {[%emt 0:00:08]} 30. a3 {[%emt 0:00:00]} a5 $1 {[%emt 0:00:06]} 31. bxa5 {[%emt 0:00:00] An interesting draw.  Weighted Error Value: White=0.01 (flawless) /Black=0.01 (flawless)} 1/2-1/2

[Event "Marcel Invitational Chess-ch 2022"]
[Site "Dhaka"]
[Date "2022.04.25"]
[Round "7.3"]
[White "Islam, Khandaker Aminul"]
[Black "Ahmed, Shafiq"]
[Result "0-1"]
[ECO "A04"]
[WhiteElo "2153"]
[BlackElo "2090"]
[Annotator "TA"]
[PlyCount "102"]
[EventDate "2022.04.18"]
[EventCountry "BAN"]
[SourceTitle "playchess.com"]
[Source "ChessBase"]
[SourceQuality "1"]
[TimeControl "5400+30"]

{[%evp 14,102,44,41,58,31,71,27,55,54,61,59,63,64,78,64,72,48,83,80,92,74,85,71,79,64,65,60,54,39,62,0,62,54,83,75,84,9,25,-15,-15,-15,-15,-15,-15,-15,-15,-15,21,22,72,65,89,66,72,72,72,67,70,67,67,67,67,67,81,67,67,67,52,0,0,-14,-14,-14,-17,-235,0,0,0,0,0,-797,-797,-776,-775,-766,-762,-684,-654,-622,-604]} 1. d4 {[%emt 0:00:11]} f5 {[%emt 0:00:48]} 2. c4 {[%emt 0:00:14]} Nf6 {[%emt 0:00:10]} 3. Nf3 {[%emt 0:00:03]} e6 {[%emt 0:00:07]} 4. g3 {[%emt 0:00:07]} Be7 {[%emt 0:00:08]} 5. Bg2 {[%emt 0:00:05]} O-O {[%emt 0:00:09]} 6. O-O {[%emt 0:00:26]} d6 {[%emt 0:00:58]} 7. b3 {[%emt 0:00:15]} c6 {[%emt 0:02:50]} 8. Bb2 {[%emt 0:00:39]} Na6 {[%emt 0:01:47] A04: Unusual lines after 1 Nf3 and King's Indian Attack.} 9. Nc3 {[%emt 0:02:03] [#]} Ne4 $146 {[%emt 0:00:39]} ({Predecessor:} 9... Nc7 10. Qc2 Bd7 11. e4 fxe4 12. Nxe4 Nxe4 13. Qxe4 Be8 14. Rad1 Bh5 15. Rd2 Qe8 {1-0 (70) Kopasov,E (2110)-Pimenov,R St Petersburg 2007}) 10. Nd2 {[%emt 0:05:54]} Nxd2 {[%emt 0:00:56] White has an edge.} 11. Qxd2 {[%emt 0:00:03]} d5 {[%emt 0:00:19]} 12. e3 {[%emt 0:01:26]} Bd7 {[%emt 0:00:24]} 13. Ne2 {[%emt 0:05:18]} Nc7 {[%emt 0:01:14]} 14. Nf4 {[%emt 0:03:36]} Be8 {[%emt 0:01:36]} 15. a4 {[%emt 0:01:52]} g5 {[%emt 0:01:00]} 16. Nd3 {[%emt 0:00:07]} Bf6 {[%emt 0:00:14]} 17. a5 {[%emt 0:01:50]} Bh5 {[%emt 0:01:31]} 18. f3 {[%emt 0:02:35]} Rb8 {[%emt 0:05:14]} 19. Bc3 {[%emt 0:11:31]} Rf7 {[%emt 0:02:16]} 20. Kh1 {[%emt 0:09:08]} Bg6 {[%emt 0:03:08]} 21. Nc5 {[%emt 0:03:32]} Be7 {[%emt 0:15:13]} 22. Nd3 {[%emt 0:08:59]} Bf6 $1 {[%emt 0:00:18]} 23. Rad1 {[%emt 0:01:16]} h5 {[%emt 0:06:33]} 24. e4 {[%emt 0:00:54]} Rh7 {[%emt 0:00:18]} 25. e5 {[%emt 0:03:40]} ({White should try} 25. exd5 $16 cxd5 26. Ne5) 25... Be7 $11 {[%emt 0:00:40]} 26. Kg1 {[%emt 0:01:59]} h4 {[%emt 0:00:30]} 27. f4 {[%emt 0:01:00]} g4 {[%emt 0:01:29]} 28. Rf2 {[%emt 0:01:04]} Na6 {[%emt 0:00:39]} 29. Qe3 {[%emt 0:05:52]} Qf8 {[%emt 0:00:35]} 30. Rc2 {[%emt 0:01:09]} b6 {[%emt 0:07:08]} 31. axb6 {[%emt 0:01:16]} Rxb6 {[%emt 0:00:04]} (31... axb6 $11 32. gxh4 Nc7) 32. Ra1 $16 {[%emt 0:00:17]} hxg3 {[%emt 0:03:37]} 33. hxg3 {[%emt 0:00:11] Hoping for c5.} ({Much weaker is} 33. Qxg3 Nc7 $11) 33... Nb4 {[%emt 0:00:46]} (33... Qh6 $2 34. c5 Nxc5 35. dxc5 $18) 34. Bxb4 {[%emt 0:02:42]} Bxb4 {[%emt 0:00:07]} 35. c5 {[%emt 0:00:53]} Rb5 {[%emt 0:01:28]} 36. Ra4 {[%emt 0:01:26]} Ba5 {[%emt 0:03:05]} 37. b4 {[%emt 0:00:24]} Bd8 {[%emt 0:00:59]} 38. Ra6 {[%emt 0:00:27]} Be8 {[%emt 0:00:27]} 39. Rca2 {[%emt 0:00:19]} Rbb7 {[%emt 0:00:10]} (39... Qh6 40. Rxa7 Qh5 41. Ra8 $16) 40. Qc1 {[%emt 0:01:27]} Qh6 {[%emt 0:00:26]} 41. Kf2 {[%emt 0:00:53]} (41. Kf1 $14) 41... Qh2 $11 {[%emt 0:03:34]} 42. R2a3 {[%emt 0:09:27]} (42. Qg1 $2 Qxg3+ $3 {[%mdl 512]} 43. Kxg3 Bh4+ 44. Kh2 Bf2+ 45. Bh3 Rxh3+ 46. Kg2 Bxg1 47. Kxg1 Rxd3 $19) 42... Rh3 $1 {[%emt 0:02:49][%cal Od8h4]} 43. Ne1 $1 {[%emt 0:01:14]} Rxb4 {[%emt 0:12:32]} 44. Rxa7 $2 {[%emt 0:03:09]} (44. Nc2 $11 Rb7 45. Qg1) 44... Rb8 $2 {[%emt 0:05:57]} (44... Rxd4 $19 {...Rc4 is the strong threat.} 45. Ra8 {[#]} Rxg3 $1 46. Rxg3 Bh4 $1) 45. Rc3 {[%emt 0:01:42]} Kf8 {[%emt 0:01:22]} 46. Qa1 {[%emt 0:01:25]} Rb4 {[%emt 0:03:20][%cal Bb8b4,Bb4c4,Bc4c2][%mdl 32] Chess con chili.} 47. Nc2 {[%emt 0:02:22][%mdl 8192]} (47. Rca3 $11) 47... Rc4 $19 {[%emt 0:00:17][%cal Oh3g3] Black is clearly winning.} 48. Raa3 {[%emt 0:00:48] [#]} Rxg3 $3 {[%emt 0:00:09][%mdl 512]} 49. Rxg3 {[%emt 0:00:47]} Rxc2+ {[%emt 0:00:02]} 50. Kf1 {[%emt 0:00:57]} Bh4 {[%emt 0:00:42]} 51. Qd1 {[%emt 0:01:16]} Rc4 {[%emt 0:01:26] Weighted Error Value: White=0.38/Black=0.17 (very precise)} ({Worse is} 51... Bxg3 52. Qxc2 Bxf4 53. Qe2 $17) 0-1

[Event "Marcel Invitational Chess-ch 2022"]
[Site "Dhaka"]
[Date "2022.04.25"]
[Round "7.4"]
[White "Ahmed, Sheikh Nasir"]
[Black "Jamal Uddin"]
[Result "1-0"]
[ECO "B90"]
[WhiteElo "2168"]
[BlackElo "2106"]
[Annotator "TA"]
[PlyCount "61"]
[EventDate "2022.04.18"]
[EventCountry "BAN"]
[SourceTitle "playchess.com"]
[Source "ChessBase"]
[SourceQuality "1"]
[TimeControl "5400+30"]

{[%evp 12,61,7,8,19,16,37,32,31,8,30,25,54,41,79,81,75,63,124,114,178,164,406,405,393,392,1016,976,1016,975,861,426,541,571,563,532,545,525,710,706,638,631,816,756,739,725,1042,1035,1070,1039,911,774]} 1. e4 {[%emt 0:00:04]} c5 {[%emt 0:00:35]} 2. Nf3 {[%emt 0:00:07]} d6 {[%emt 0:00:43]} 3. d4 {[%emt 0:01:03]} cxd4 {[%emt 0:00:14]} 4. Nxd4 {[%emt 0:00:03]} Nf6 {[%emt 0:00:09]} 5. Nc3 {[%emt 0:00:05]} a6 {[%emt 0:00:05]} 6. h3 {[%emt 0:01:46]} e5 {[%emt 0:01:48] 6...e5 scores better than 6...e6.} 7. Nde2 {[%emt 0:00:11]} h5 {[%emt 0:00:53] B90: Sicilian Najdorf: Unusual White 6th moves, 6 Be3 Ng4 and 6 Be3 e5.} 8. g3 {[%emt 0:00:03]} Be7 {[%emt 0:00:58]} 9. Bg2 {[%emt 0:00:02]} Be6 {[%emt 0:01:05] White is slightly better.} 10. O-O {[%emt 0:00:38][%cal Bh1f1,Bf1f2,Bf2f7][%mdl 32]} Nbd7 {[%emt 0:04:54]} 11. a4 {[%emt 0:04:50]} Qc7 {[%emt 0:02:41]} 12. Be3 {[%emt 0:03:59] [#]} g6 $146 {[%emt 0:08:02]} ({Predecessor:} 12... Rc8 13. a5 O-O 14. b3 Rfe8 15. Ra2 Bf8 16. Nd5 Bxd5 17. exd5 e4 18. c4 g6 {½-½ (61) Vachier Lagrave,M (2722)-Makarov,M (2518) Loo 2013}) 13. f4 {[%emt 0:05:03]} Bc4 {[%emt 0:08:30]} 14. Rf2 {[%emt 0:09:04]} Bxe2 {[%emt 0:06:18]} (14... O-O $14) 15. Qxe2 $16 {[%emt 0:02:21]} ({Don't play} 15. Rxe2 Nb6 $14) 15... Kf8 {[%emt 0:09:07]} (15... Rc8 $16) 16. Raf1 {[%emt 0:03:27] [#] Hoping for fxe5.} Kg7 $2 {[%emt 0:06:07]} (16... Rh7 {was called for.} 17. f5 g5 18. Bxg5 Qb6) 17. fxe5 $18 {[%emt 0:05:48]} ({Not} 17. f5 g5 18. Bxg5 Qb6 $16) 17... dxe5 {[%emt 0:01:52]} 18. Nd5 {[%emt 0:00:40]} Nxd5 {[%emt 0:05:33]} (18... Qd6 19. Nxe7 Qxe7) 19. Rxf7+ {[%emt 0:00:37] White is clearly winning.} ({Weaker is} 19. exd5 f5 $11) 19... Kg8 {[%emt 0:00:06]} 20. exd5 {[%emt 0:00:20] Strongly threatening d6.} Qd6 {[%emt 0:01:25] [#]} 21. c4 {[%emt 0:17:48]} (21. Rxe7 $142 $1 {[%mdl 512]} Qxe7 22. d6) 21... Rf8 {[%emt 0:04:54]} 22. Rxf8+ {[%emt 0:00:21]} Bxf8 {[%emt 0:00:29]} 23. Qc2 {[%emt 0:03:19]} Bh6 {[%emt 0:03:38]} 24. Bf2 {[%emt 0:00:22] Black must now prevent c5. This bishop pair is nice.} Bf8 {[%emt 0:04:12]} 25. b4 {[%emt 0:02:08][%cal Bb2b4,Bb4c5][%mdl 32]} b6 {[%emt 0:05:58] Against c5} 26. Rc1 {[%emt 0:00:51]} Kh7 {[%emt 0:05:11]} 27. c5 {[%emt 0:00:14]} bxc5 {[%emt 0:00:11]} 28. bxc5 {[%emt 0:00:02]} Qc7 {[%emt 0:00:39]} 29. d6 {[%emt 0:02:21]} Qc8 {[%emt 0:02:27]} 30. Qb3 {[%emt 0:05:36]} Bg7 {[%emt 0:02:03]} 31. Qb7 {[%emt 0:01:22] Black did not feel at home in the position after the opening.  Weighted Error Value: White=0.25 (precise) /Black=0.52} 1-0

[Event "Marcel Invitational Chess-ch 2022"]
[Site "Dhaka"]
[Date "2022.04.25"]
[Round "7.5"]
[White "Rahman, Syed Mahfuzur"]
[Black "Md, Sariatullah"]
[Result "1-0"]
[ECO "B41"]
[WhiteElo "2113"]
[BlackElo "1971"]
[Annotator "TA"]
[PlyCount "57"]
[EventDate "2022.04.18"]
[EventCountry "BAN"]
[SourceTitle "playchess.com"]
[Source "ChessBase"]
[SourceQuality "1"]
[TimeControl "5400+30"]

{[%evp 12,57,41,1,60,58,66,51,54,38,48,34,35,42,59,44,34,26,187,187,177,181,185,188,187,178,185,179,183,171,284,270,355,337,623,627,617,609,1160,1139,12843,29971,5273,807,29991,29992,29992,29993]} 1. d4 {[%emt 0:01:06]} Nf6 {[%emt 0:01:03]} 2. Nf3 {[%emt 0:00:17]} e6 {[%emt 0:00:05]} 3. c4 {[%emt 0:00:03]} c5 {[%emt 0:00:07]} 4. Nc3 {[%emt 0:04:36]} cxd4 {[%emt 0:02:28]} 5. Nxd4 {[%emt 0:03:44]} a6 {[%emt 0:03:11]} 6. e4 {[%emt 0:01:11]} Qc7 {[%emt 0:00:08]} 7. f4 {[%emt 0:07:06] White wants to play e5.} d6 {[%emt 0:00:05] Against e5. B41: Sicilian: Kan Variation: 5 c4.} (7... Bb4 $11) 8. Be3 {[%emt 0:06:48]} b6 {[%emt 0:04:18]} 9. Be2 {[%emt 0:06:09] &Bianco is more active.} Bb7 {[%emt 0:00:18] White is slightly better.} 10. Qc2 {[%emt 0:00:51]} Nbd7 {[%emt 0:02:09]} 11. Rc1 {[%emt 0:00:44]} Rc8 {[%emt 0:02:52]} 12. O-O {[%emt 0:02:05]} Be7 {[%emt 0:00:17]} 13. b3 {[%emt 0:05:02]} O-O {[%emt 0:01:03] [#]} 14. g4 $146 {[%emt 0:02:41] aiming for g5.} ({Predecessor:} 14. Bf3 Qb8 15. g4 Nc5 16. g5 Ne8 17. h4 b5 18. cxb5 axb5 19. Ndxb5 Ba6 20. a4 {0-1 (36) Rorrer,G (2117)-Sergienko,S (2335) Chess.com INT 2021}) 14... h6 {[%emt 0:10:10] [#] Black cannot hold the game after this.} (14... d5 $1 $11 {and Black is okay.}) 15. g5 $36 {[%emt 0:04:39][%mdl 2048] White has strong initiative.} hxg5 {[%emt 0:04:30]} 16. fxg5 {[%emt 0:03:28]} Nh7 {[%emt 0:00:09]} 17. g6 {[%emt 0:00:45]} fxg6 {[%emt 0:05:17]} 18. Nxe6 {[%emt 0:00:29]} Rxf1+ {[%emt 0:04:05]} 19. Rxf1 {[%emt 0:08:29]} ({Resist} 19. Kxf1 Qb8 $16) 19... Qb8 {[%emt 0:00:05]} 20. Nd5 {[%emt 0:07:41]} Bxd5 {[%emt 0:05:31]} (20... Bf6 $142 21. Nef4 (21. Nxb6 Nxb6 22. e5 Re8 $16) 21... Ne5 22. Nxb6 (22. Bxb6 g5 $11) 22... Ng5) 21. exd5 {[%emt 0:00:01]} Ne5 {[%emt 0:00:35]} 22. Bd4 {[%emt 0:01:21] [#] Threatens to win with Bxe5.} Bf6 {[%emt 0:03:57]} (22... Rf8 23. Nxf8 Nxf8 24. Bxe5 dxe5) 23. Bxe5 {[%emt 0:07:28]} dxe5 {[%emt 0:01:42]} 24. Qxg6 {[%emt 0:01:06][%cal Of1f6] And now Rxf6! would win.} Nf8 {[%emt 0:00:15]} 25. Qg4 {[%emt 0:03:19] Threatening mate with Rxf6.} Nxe6 {[%emt 0:01:26]} 26. Qxe6+ {[%emt 0:03:46]} Kf8 {[%emt 0:00:13]} 27. Bh5 {[%emt 0:00:42]} (27. d6 $142 Re8 28. Rxf6+ gxf6 29. Qxf6+ Kg8 30. c5) 27... Qc7 {[%emt 0:01:39]} 28. d6 {[%emt 0:01:04]} Qc5+ {[%emt 0:01:11]} 29. Rf2 {[%emt 0:00:32] Weighted Error Value: White=0.14 (very precise) /Black=0.77} 1-0

[Event "Marcel Invitational Chess-ch 2022"]
[Site "Dhaka"]
[Date "2022.04.25"]
[Round "7.6"]
[White "abu, Hanif"]
[Black "Mohammad, Din"]
[Result "1-0"]
[ECO "A46"]
[WhiteElo "2020"]
[BlackElo "1793"]
[Annotator "TA"]
[PlyCount "63"]
[EventDate "2022.04.18"]
[EventCountry "BAN"]
[SourceTitle "playchess.com"]
[Source "ChessBase"]
[SourceQuality "1"]
[TimeControl "5400+30"]

{[%evp 9,63,-32,-6,-22,2,-20,0,-8,8,-16,-16,-45,-9,-45,-39,-38,3,-58,-51,-62,-15,-27,-10,-16,-23,-35,0,0,10,0,97,92,82,106,82,76,86,77,72,85,112,-541,-479,-667,-553,-778,-160,-135,0,0,0,0,28,-125,1551,1488]} 1. d4 {[%emt 0:30:50]} c5 {[%emt 0:00:17]} 2. c3 {[%emt 0:00:07]} Nf6 {[%emt 0:00:23]} 3. Nf3 {[%emt 0:00:08]} e6 {[%emt 0:03:51]} 4. Bf4 {[%emt 0:01:01]} cxd4 {[%emt 0:00:37]} 5. Nxd4 {[%emt 0:00:38]} a6 {[%emt 0:00:27]} 6. e3 {[%emt 0:00:22] A46: 1 d4 Nf6 2 Nf3 e6: Torre, London and Colle Systems.} Nc6 {[%emt 0:00:04]} 7. Bg3 {[%emt 0:00:50]} d5 {[%emt 0:00:15]} 8. Nd2 {[%emt 0:00:12] The position is equal.} Bd6 {[%emt 0:00:18]} 9. Be2 {[%emt 0:00:25] [#]} (9. Qa4 $5 {[%cal Rd4c6]} Bxg3 10. hxg3 $11) 9... O-O $146 {[%emt 0:00:21]} ({Predecessor:} 9... e5 10. Nxc6 bxc6 11. O-O O-O 12. c4 Qe7 13. Qc2 Re8 14. Rac1 h6 15. Rfd1 Bb7 {0-1 (77) Herrmann,A (2142)-Polster,C (2256) Germany 2017}) 10. Rc1 {[%emt 0:00:10]} e5 {[%emt 0:00:04]} 11. N4b3 {[%emt 0:00:59]} b5 {[%emt 0:00:11]} 12. O-O {[%emt 0:01:34]} Bb7 {[%emt 0:01:26]} 13. f4 {[%emt 0:00:09]} (13. Bh4 $11) 13... Qb6 {[%emt 0:00:12]} 14. Bf2 {[%emt 0:01:33][%cal Oe3e4]} e4 {[%emt 0:01:04]} (14... Qc7 $15 {might be stronger.} 15. Bg3 exf4 16. Bxf4 Rae8) 15. Nd4 $11 {[%emt 0:00:12]} Nxd4 {[%emt 0:00:34]} 16. cxd4 {[%emt 0:00:19]} Rac8 {[%emt 0:00:09]} 17. Qb3 {[%emt 0:00:26]} h5 {[%emt 0:00:38]} 18. Bh4 {[%emt 0:00:28]} Ng4 {[%emt 0:00:08]} 19. h3 {[%emt 0:00:08] aiming for Rxc8.} Nf6 {[%emt 0:01:39]} (19... Rxc1 $11 20. Rxc1 Nh6) 20. Bxf6 $16 {[%emt 0:00:40]} gxf6 {[%emt 0:00:04]} 21. Bxh5 {[%emt 0:01:09]} f5 {[%emt 0:00:01]} 22. Nb1 {[%emt 0:00:59]} b4 {[%emt 0:00:25] [#]} 23. Nc3 $1 {[%emt 0:00:34]} Qa5 {[%emt 0:00:48] Threatens to win with ...Bc6.} 24. Ne2 {[%emt 0:00:28]} Bc6 {[%emt 0:00:13] [#]} 25. Ng3 $2 {[%emt 0:00:24][%mdl 8192]} (25. Rxc6 $1 $16 {[%mdl 512] keeps the pressure on.} Rxc6 26. Ng3) 25... Ba4 $19 {[%emt 0:00:01]} 26. Nxf5 {[%emt 0:04:27]} ({Reject} 26. Rxc8 Rxc8 27. Nxf5 Bf8) 26... Bxb3 {[%emt 0:01:58]} 27. Rxc8 {[%emt 0:00:14]} Bxa2 $2 {[%emt 0:01:21]} (27... Rxc8 $19 28. Bxf7+ Kxf7 29. Nxd6+ Kf8 30. Nxc8 Qxa2) 28. Rc6 {[%emt 0:01:22] [#]} ({Not} 28. Nxd6 $2 Rxc8 29. Nxc8 Qc7 $19) 28... Bb8 {[%emt 0:00:33]} (28... Bc4 $1 $17 {[%cal Rc4f1]} 29. Rc1 Bb8 30. Nh6+ Kh7) 29. Ra1 $11 {[%emt 0:01:06]} b3 {[%emt 0:00:36] And now ...Qd2 would win.} 30. Rf1 {[%emt 0:01:00]} Qb5 {[%emt 0:03:09] Hoping for ...a5.} 31. Rc5 $2 {[%emt 0:00:17]} ({White should play} 31. Rfc1 $11) 31... Qe2 $2 {[%emt 0:00:10][%mdl 8192]} 32. Bxe2 {[%emt 0:00:05] Weighted Error Value: White=0.54/Black=0.54} 1-0